fUSD/lending_fUSD_20260607
["ID","MTS","AMOUNT","RATE_DAILY","PERIOD"]
[424344632,1780770641000,-160.88134904,0.00014986,2]
[424344639,1780770641000,-500.0,0.00014999,2]
[424344636,1780770641000,-3490.83684955,0.0001499,2]
[424344635,1780770641000,-3490.83684955,0.0001499,2]
[424344640,1780770641000,-500.0,0.00014999,2]
[424344638,1780770641000,-500.0,0.00014999,2]
[424344634,1780770641000,-250.0,0.0001499,2]
[424344641,1780770641000,-500.0,0.00014999,2]
[424344642,1780770641000,-500.0,0.00014999,2]
[424344645,1780770641000,-500.0,0.00014999,2]
[424344647,1780770641000,-500.0,0.00014999,2]
[424344651,1780770641000,-500.0,0.00014999,2]
[424344637,1780770641000,-500.0,0.00014999,2]
[424344652,1780770641000,-500.0,0.00014999,2]
[424344649,1780770641000,-500.0,0.00014999,2]
[424344650,1780770641000,-500.0,0.00014999,2]
[424344653,1780770641000,-500.0,0.00014999,2]
[424344655,1780770641000,-323.0,0.00014999,2]
[424344657,1780770641000,-500.0,0.00014999,2]
[424344646,1780770641000,-500.0,0.00014999,2]
[424344656,1780770641000,-500.0,0.00014999,2]
[424344663,1780770641000,-257.3388504,0.00014999,2]
[424344659,1780770641000,-500.0,0.00014999,2]
[424344658,1780770641000,-500.0,0.00014999,2]
[424344662,1780770641000,-500.0,0.00014999,2]
[424344661,1780770641000,-500.0,0.00014999,2]
[424344607,1780770641000,-10000.0,0.000149,2]
[424344648,1780770641000,-500.0,0.00014999,2]
[424344644,1780770641000,-500.0,0.00014999,2]
[424344660,1780770641000,-500.0,0.00014999,2]
[424344626,1780770641000,-158.73968764,0.00014986,2]
[424344633,1780770641000,-1000.0,0.0001499,2]
[424344599,1780770641000,-150.0,0.00014863,2]
[424344602,1780770641000,-304.53062424,0.0001488,2]
[424344600,1780770641000,-304.53062424,0.00014865,2]
[424344603,1780770641000,-150.0,0.00014886,2]
[424344609,1780770641000,-90299.54996193,0.000149,2]
[424344610,1780770641000,-435.0463614,0.000149,2]
[424344608,1780770641000,-79508.80545872,0.000149,2]
[424344619,1780770641000,-150.0,0.00014936,2]
[424344612,1780770641000,-150.0,0.00014905,2]
[424344611,1780770641000,-6554.56234253,0.000149,2]
[424344613,1780770641000,-150.0,0.00014907,2]
[424344617,1780770641000,-304.53062424,0.00014926,2]
[424344616,1780770641000,-150.0,0.00014913,2]
[424344601,1780770641000,-150.0,0.00014877,2]
[424344618,1780770641000,-150.0,0.00014932,2]
[424344614,1780770641000,-291.49330483,0.00014908,2]
[424344630,1780770641000,-169.15934622,0.00014986,2]
[424344625,1780770641000,-304.53062424,0.00014971,2]
[424344624,1780770641000,-150.0,0.00014962,2]
[424344622,1780770641000,-304.53062424,0.00014956,2]
[424344631,1780770641000,-304.53062424,0.00014986,2]
[424344628,1780770641000,-150.0,0.00014986,2]
[424344615,1780770641000,-304.53062424,0.00014911,2]
[424344621,1780770641000,-304.53062424,0.00014941,2]
[424344620,1780770641000,-150.0,0.00014937,2]
[424344627,1780770641000,-151.5407187,0.00014986,2]
[424344623,1780770641000,-150.0,0.00014959,2]
[424344629,1780770641000,-151.41923819,0.00014986,2]
[424344697,1780770642000,-500.0,0.00014999,2]
[424344707,1780770642000,-500.0,0.00014999,2]
[424344686,1780770642000,-500.0,0.00014999,2]
[424344694,1780770642000,-500.0,0.00014999,2]
[424344688,1780770642000,-500.0,0.00014999,2]
[424344700,1780770642000,-500.0,0.00014999,2]
[424344699,1780770642000,-500.0,0.00014999,2]
[424344710,1780770642000,-500.0,0.00014999,2]
[424344716,1780770642000,-500.0,0.00014999,2]
[424344712,1780770642000,-500.0,0.00014999,2]
[424344701,1780770642000,-500.0,0.00014999,2]
[424344703,1780770642000,-500.0,0.00014999,2]
[424344708,1780770642000,-500.0,0.00014999,2]
[424344706,1780770642000,-500.0,0.00014999,2]
[424344714,1780770642000,-500.0,0.00014999,2]
[424344705,1780770642000,-500.0,0.00014999,2]
[424344704,1780770642000,-500.0,0.00014999,2]
[424344718,1780770642000,-500.0,0.00014999,2]
[424344729,1780770642000,-500.0,0.00014999,2]
[424344734,1780770642000,-500.0,0.00014999,2]
[424344735,1780770642000,-500.0,0.00014999,2]
[424344693,1780770642000,-500.0,0.00014999,2]
[424344724,1780770642000,-500.0,0.00014999,2]
[424344702,1780770642000,-500.0,0.00014999,2]
[424344684,1780770642000,-500.0,0.00014999,2]
[424344679,1780770642000,-500.0,0.00014999,2]
[424344691,1780770642000,-500.0,0.00014999,2]
[424344722,1780770642000,-500.0,0.00014999,2]
[424344669,1780770642000,-500.0,0.00014999,2]
[424344665,1780770642000,-500.0,0.00014999,2]
[424344668,1780770642000,-500.0,0.00014999,2]
[424344666,1780770642000,-500.0,0.00014999,2]
[424344664,1780770642000,-500.0,0.00014999,2]
[424344667,1780770642000,-500.0,0.00014999,2]
[424344671,1780770642000,-500.0,0.00014999,2]
[424344681,1780770642000,-500.0,0.00014999,2]
[424344672,1780770642000,-500.0,0.00014999,2]
[424344678,1780770642000,-500.0,0.00014999,2]
[424344680,1780770642000,-500.0,0.00014999,2]
[424344675,1780770642000,-500.0,0.00014999,2]
[424344683,1780770642000,-500.0,0.00014999,2]
[424344682,1780770642000,-500.0,0.00014999,2]
[424344676,1780770642000,-500.0,0.00014999,2]
[424344670,1780770642000,-500.0,0.00014999,2]
[424344673,1780770642000,-500.0,0.00014999,2]
[424344674,1780770642000,-500.0,0.00014999,2]
[424344677,1780770642000,-500.0,0.00014999,2]
[424344685,1780770642000,-500.0,0.00014999,2]
[424344695,1780770642000,-500.0,0.00014999,2]
[424344687,1780770642000,-500.0,0.00014999,2]
[424344690,1780770642000,-500.0,0.00014999,2]
[424344689,1780770642000,-500.0,0.00014999,2]
[424344692,1780770642000,-500.0,0.00014999,2]
[424344733,1780770642000,-500.0,0.00014999,2]
[424344731,1780770642000,-500.0,0.00014999,2]
[424344732,1780770642000,-500.0,0.00014999,2]
[424344763,1780770642000,-593.82,0.00014999,2]
[424344764,1780770642000,-593.82,0.00014999,2]
[424344773,1780770642000,-666.0,0.00014999,2]
[424344774,1780770642000,-300.0,0.00014999,2]
[424344775,1780770642000,-666.0,0.00014999,2]
[424344769,1780770642000,-593.82,0.00014999,2]
[424344768,1780770642000,-593.82,0.00014999,2]
[424344766,1780770642000,-593.82,0.00014999,2]
[424344767,1780770642000,-593.82,0.00014999,2]
[424344770,1780770642000,-593.82,0.00014999,2]
[424344772,1780770642000,-300.0,0.00014999,2]
[424344762,1780770642000,-593.82,0.00014999,2]
[424344771,1780770642000,-594.03,0.00014999,2]
[424344776,1780770642000,-300.82658482,0.00015,2]
[424344778,1780770642000,-2080.68023042,0.00015,2]
[424344780,1780770642000,-1832729.37965257,0.00015,2]
[424344779,1780770642000,-8099.05402124,0.00015,2]
[424344781,1780770642000,-2002.96239644,0.00015,2]
[424344782,1780770642000,-677.0,0.00014094,2]
[424344784,1780770642000,-1651.92297843,0.00014094,2]
[424344783,1780770642000,-3959.09780697,0.00010999,2]
[424344787,1780770642000,-522.74064573,0.00015,2]
[424344786,1780770642000,-11.86261585,0.00015,2]
[424344785,1780770642000,-612.92562213,0.00014094,2]
[424344777,1780770642000,-25474219.71174101,0.00015,2]
[424344754,1780770642000,-500.0,0.00014999,2]
[424344765,1780770642000,-593.82,0.00014999,2]
[424344751,1780770642000,-500.0,0.00014999,2]
[424344736,1780770642000,-500.0,0.00014999,2]
[424344726,1780770642000,-500.0,0.00014999,2]
[424344737,1780770642000,-500.0,0.00014999,2]
[424344740,1780770642000,-500.0,0.00014999,2]
[424344738,1780770642000,-500.0,0.00014999,2]
[424344739,1780770642000,-500.0,0.00014999,2]
[424344748,1780770642000,-500.0,0.00014999,2]
[424344742,1780770642000,-500.0,0.00014999,2]
[424344752,1780770642000,-500.0,0.00014999,2]
[424344741,1780770642000,-500.0,0.00014999,2]
[424344747,1780770642000,-500.0,0.00014999,2]
[424344744,1780770642000,-500.0,0.00014999,2]
[424344743,1780770642000,-500.0,0.00014999,2]
[424344746,1780770642000,-500.0,0.00014999,2]
[424344757,1780770642000,-500.0,0.00014999,2]
[424344745,1780770642000,-500.0,0.00014999,2]
[424344755,1780770642000,-500.0,0.00014999,2]
[424344753,1780770642000,-500.0,0.00014999,2]
[424344760,1780770642000,-593.82,0.00014999,2]
[424344756,1780770642000,-500.0,0.00014999,2]
[424344750,1780770642000,-500.0,0.00014999,2]
[424344749,1780770642000,-500.0,0.00014999,2]
[424344759,1780770642000,-627.04,0.00014999,2]
[424344761,1780770642000,-593.82,0.00014999,2]
[424344758,1780770642000,-500.0,0.00014999,2]
[424344720,1780770642000,-500.0,0.00014999,2]
[424344792,1780770643000,-178658.11164579,0.00015,2]
[424344790,1780770643000,-39298.30855675,0.00015,2]
[424344791,1780770643000,-762551.24026963,0.00015,2]
[424344789,1780770643000,-4847.24191206,0.00015,2]
[424344800,1780770645000,-2553.78535381,0.0001295,2]
[424344801,1780770646000,-352.13,0.0001295,2]
[424344804,1780770680000,152.0,7.682e-05,7]
[424344815,1780771291000,253.75012797,9.5e-05,3]
[424344817,1780771354000,251.39349716,9.5e-05,3]
[424344819,1780771415000,259.01148192,9.5e-05,3]
[424344832,1780771831000,-251.39349716,9.958e-05,2]
[424344831,1780771831000,-253.75012797,9.958e-05,2]
[424344833,1780771831000,-150.0,0.00010282,2]
[424344837,1780771831000,-198.55635921,0.00012195,2]
[424344836,1780771831000,-150.0,0.00012129,2]
[424344835,1780771831000,-30.45881454,0.00011664,2]
[424344834,1780771831000,-505.73637487,0.00011664,2]
[424344843,1780771837000,-333.32,0.00012195,2]
[424344845,1780771838000,-580.37950307,0.00012195,2]
[424344844,1780771838000,-400.0,0.00012195,2]
[424344846,1780771838000,-315.0,0.00012195,2]
[424345181,1780771840000,-522.9232407,0.00012195,2]
[424345089,1780771840000,-2003.687569,0.00012195,2]
[424345441,1780771842000,-1220.15644698,0.00012195,2]
[424345445,1780771842000,-294.39221772,0.00012195,2]
[424345473,1780771845000,-272.62528196,0.00012195,2]
[424345475,1780771846000,-536.19518939,0.00012225,2]
[424345485,1780771846000,-1852.42,0.00012652,2]
[424345481,1780771846000,-212.32,0.00012402,2]
[424345480,1780771846000,-2340.13,0.0001233,2]
[424345483,1780771846000,-150.0,0.00012422,2]
[424345479,1780771846000,-9999.99,0.00012308,2]
[424345484,1780771846000,-2418.7,0.00012422,2]
[424345482,1780771846000,-4000.0,0.00012415,2]
[424345477,1780771846000,-200.0,0.00012308,2]
[424345476,1780771846000,-717.16,0.00012243,2]
[424345478,1780771846000,-150.99,0.00012308,2]
[424345474,1780771846000,-1377.58938136,0.00012195,2]
[424345487,1780771846000,-3794.62213814,0.0001273,2]
[424345486,1780771846000,-4000.0,0.00012725,2]
[424345496,1780772360000,302.89524556,9.414e-05,7]
[424345497,1780772442000,911.16321055,0.00030136,120]
[424345503,1780772605000,-368.14832344,0.0001,2]
[424345501,1780772605000,-815.49750428,0.0001,2]
[424345502,1780772605000,-299.59830692,0.0001,2]
[424345499,1780772605000,-340.0,0.0001,2]
[424345500,1780772605000,-269.04199093,0.0001,2]
[424345498,1780772605000,-220.13276167,0.0001,2]
[424345506,1780772628000,-298.50000001,0.000104,2]
[424345505,1780772628000,-300.0,0.00010399,2]
[424345518,1780772629000,-500.0,0.00011899,2]
[424345520,1780772629000,-500.0,0.00011899,2]
[424345523,1780772629000,-500.0,0.00011899,2]
[424345526,1780772629000,-500.0,0.00011899,2]
[424345522,1780772629000,-500.0,0.00011899,2]
[424345524,1780772629000,-500.0,0.00011899,2]
[424345519,1780772629000,-500.0,0.00011899,2]
[424345521,1780772629000,-500.0,0.00011899,2]
[424345517,1780772629000,-500.0,0.00011899,2]
[424345512,1780772629000,-340.0,0.0001148,2]
[424345515,1780772629000,-4000.0,0.00011896,2]
[424345513,1780772629000,-178.73172981,0.000118,2]
[424345514,1780772629000,-299.59830692,0.000118,2]
[424345510,1780772629000,-285.82936462,0.00011318,7]
[424345511,1780772629000,-888.93,0.00011396,2]
[424345508,1780772629000,-299.59830692,0.000108,2]
[424345509,1780772629000,-250.0,0.00011,2]
[424345507,1780772629000,-150.0,0.000108,2]
[424345525,1780772629000,-414.53103706,0.00011899,2]
[424345516,1780772629000,-150.0,0.00011898,2]
[424345527,1780772629000,-500.0,0.00011899,2]
[424345531,1780772629000,-150.0,0.00011946,2]
[424345529,1780772629000,-9194.45973928,0.000119,2]
[424345528,1780772629000,-500.0,0.00011899,2]
[424345548,1780772629000,-500.0,0.00012054,2]
[424345550,1780772629000,-345.31816479,0.00012054,2]
[424345543,1780772629000,-340.83087181,0.00012054,2]
[424345545,1780772629000,-299.99,0.00012054,2]
[424345546,1780772629000,-500.0,0.00012054,2]
[424345544,1780772629000,-499.99,0.00012054,2]
[424345542,1780772629000,-9999.99,0.00012053,2]
[424345539,1780772629000,-1561.23,0.00012053,2]
[424345541,1780772629000,-2134.84,0.00012053,2]
[424345547,1780772629000,-185.06159716,0.00012054,2]
[424345538,1780772629000,-3228.81,0.00012053,2]
[424345540,1780772629000,-521.56,0.00012053,2]
[424345532,1780772629000,-151.0,0.00012,2]
[424345530,1780772629000,-178.73172979,0.00011928,2]
[424345533,1780772629000,-151.0,0.00012,2]
[424345549,1780772629000,-500.0,0.00012054,2]
[424345534,1780772629000,-151.0,0.00012,2]
[424345536,1780772629000,-1023.77,0.00012053,2]
[424345537,1780772629000,-1979.13,0.00012053,2]
[424345535,1780772629000,-151.0,0.00012,2]
[424345565,1780772630000,-4000.0,0.0001249,2]
[424345557,1780772630000,-4000.0,0.00012193,2]
[424345563,1780772630000,-999.99,0.00012476,2]
[424345562,1780772630000,-150.99,0.00012476,2]
[424345560,1780772630000,-257.5,0.00012476,2]
[424345561,1780772630000,-1582.25,0.00012476,2]
[424345559,1780772630000,-500.0,0.00012451,2]
[424345555,1780772630000,-309.41,0.00012155,2]
[424345556,1780772630000,-500.0,0.00012177,2]
[424345553,1780772630000,-45046.68,0.00012055,2]
[424345554,1780772630000,-178.73172979,0.00012055,2]
[424345552,1780772630000,-500.0,0.00012054,2]
[424345551,1780772630000,-500.0,0.00012054,2]
[424345564,1780772630000,-1632.13,0.00012476,2]
[424345558,1780772630000,-1000.0,0.00012377,2]
[424345567,1780772630000,-191.8118,0.00012558,2]
[424345568,1780772630000,-1038.51,0.00012576,2]
[424345578,1780772630000,-17327.67596746,0.00012663,2]
[424345583,1780772630000,-443242.69417327,0.00012755,2]
[424345582,1780772630000,-2543.7396072,0.00012731,2]
[424345580,1780772630000,-500.0,0.00012725,2]
[424345579,1780772630000,-1670.76008671,0.00012663,2]
[424345581,1780772630000,-151.0,0.0001273,2]
[424345577,1780772630000,-12181.59808824,0.00012663,2]
[424345575,1780772630000,-2576.5373,0.00012655,2]
[424345573,1780772630000,-33261.1868,0.00012655,2]
[424345574,1780772630000,-2500.0,0.00012655,2]
[424345572,1780772630000,-2000.0,0.00012655,2]
[424345570,1780772630000,-2000.0,0.00012595,2]
[424345571,1780772630000,-24632.6349,0.00012625,2]
[424345569,1780772630000,-160.0,0.00012591,2]
[424345576,1780772630000,-458.92981192,0.00012663,2]
[424345566,1780772630000,-5021.39,0.00012549,2]
[424345599,1780773031000,-500.0,0.00011858,2]
[424345600,1780773031000,-184.61074363,0.00011955,2]
[424345608,1780773031000,-2510.69,0.00012514,2]
[424345603,1780773031000,-500.0,0.00012077,2]
[424345598,1780773031000,-166.66,0.00011761,2]
[424345604,1780773031000,-500.0,0.00012077,2]
[424345609,1780773031000,-160.0,0.00012533,2]
[424345602,1780773031000,-500.0,0.00012077,2]
[424345605,1780773031000,-166.66,0.00012149,2]
[424345607,1780773031000,-196.95,0.00012329,2]
[424345606,1780773031000,-150.0,0.00012189,2]
[424345610,1780773031000,-25.22389297,0.00012538,2]
[424345601,1780773031000,-1345.52725637,0.00011955,2]
[424345613,1780773032000,-3207.38,0.00012549,2]
[424345614,1780773032000,-5531.0,0.00012549,2]
[424345615,1780773032000,-829.63571853,0.00012549,2]
[424345612,1780773032000,-314.49403863,0.00012549,2]
[424345611,1780773032000,-141.43610703,0.00012538,2]
[424345617,1780773032000,-2492.11062943,0.00012549,2]
[424345624,1780773032000,-255.33644134,0.00012563,2]
[424345622,1780773032000,-270.63949906,0.00012563,2]
[424345618,1780773032000,-47.21149383,0.00012549,2]
[424345621,1780773032000,-344.81306968,0.00012563,2]
[424345623,1780773032000,-150.99,0.00012563,2]
[424345619,1780773032000,-365.82533688,0.00012549,2]
[424345620,1780773032000,-1884.54743126,0.00012563,2]
[424345616,1780773032000,-2787.09608492,0.00012549,2]
[424345630,1780773038000,-1739.66312345,0.00012563,2]
[424345629,1780773038000,-672.09350008,0.00012563,2]
[424345628,1780773038000,-451.81903118,0.00012563,2]
[424345753,1780773041000,-3197.52184237,0.00012563,2]
[424345752,1780773041000,-600.0,0.00012563,2]
[424345758,1780773043000,-254.13796248,0.00012563,2]
[424345764,1780773046000,-431.7819009,0.00012629,2]
[424345762,1780773046000,-694.2180991,0.00012563,2]
[424345763,1780773046000,-150.0,0.00012628,2]
[424345772,1780773632000,214.58,0.00030082,120]
[424345823,1780774232000,-442.32898271,8.792e-05,2]
[424345822,1780774232000,-57.67101729,8.792e-05,2]
[424345821,1780774232000,-305.9191998,8.24e-05,2]
[424345819,1780774232000,-150.0,7.993e-05,2]
[424345820,1780774232000,-459.8984744,8.24e-05,2]
[424345825,1780774232000,-500.0,9.039e-05,2]
[424345824,1780774232000,-167.17273347,9.039e-05,2]
[424345826,1780774232000,-157.17011523,9.039e-05,2]
[424345828,1780774232000,-1781.42258427,9.04e-05,2]
[424345829,1780774232000,-1050.0,9.04e-05,2]
[424345831,1780774232000,-1623.11679656,9.04e-05,2]
[424345830,1780774232000,-3340.31737442,9.04e-05,2]
[424345832,1780774232000,-431.14113427,9.04e-05,2]
[424345827,1780774232000,-2563.50683296,9.04e-05,2]
[424345881,1780774238000,-1955.43910252,0.0001,2]
[424345879,1780774238000,-246.91204146,9.999e-05,2]
[424345891,1780774238000,-245.48419936,0.000101,2]
[424345893,1780774238000,-263.05797644,0.000101,2]
[424345903,1780774238000,-1113.8400578,0.000106,2]
[424345895,1780774238000,-2000.0,0.0001026,2]
[424345899,1780774238000,-200.0,0.00010328,2]
[424345901,1780774238000,-245.65,0.00010412,2]
[424345909,1780774238000,-2327.22456637,0.0001069,2]
[424345911,1780774238000,-271.70189762,0.000107,2]
[424345905,1780774238000,-250.0,0.0001068,2]
[424345907,1780774238000,-171.3,0.0001068,2]
[424345897,1780774238000,-195350.20225081,0.000103,2]
[424345885,1780774238000,-7272.34294282,0.0001,2]
[424345915,1780774238000,-500.0,0.000107,3]
[424345875,1780774238000,-500.0,9.999e-05,2]
[424345877,1780774238000,-291.72271536,9.999e-05,2]
[424345889,1780774238000,-167.17273346,0.0001,2]
[424345873,1780774238000,-417.20071508,9.999e-05,2]
[424345883,1780774238000,-2769.40071782,0.0001,2]
[424345871,1780774238000,-500.0,9.999e-05,2]
[424345870,1780774238000,-500.0,9.999e-05,2]
[424345867,1780774238000,-250.0,9.408e-05,2]
[424345868,1780774238000,-205.0,9.8e-05,2]
[424345865,1780774238000,-34274.7531731,9.04e-05,2]
[424345869,1780774238000,-150.0,9.998e-05,2]
[424345866,1780774238000,-1021.84930708,9.2e-05,2]
[424345864,1780774238000,-974.37953422,9.04e-05,2]
[424345887,1780774238000,-163.61,0.0001,2]
[424345917,1780774238000,-1000.0,0.000108,3]
[424345969,1780774238000,-500.0,0.00011976,2]
[424345919,1780774238000,-1600.0,0.000109,3]
[424345913,1780774238000,-1759074.21571803,0.000107,2]
[424345978,1780774238000,-433.0,0.00012098,2]
[424345975,1780774238000,-9999.99,0.00012087,2]
[424345973,1780774238000,-4000.0,0.00012079,2]
[424345971,1780774238000,-23389.33742754,0.00011997,2]
[424345965,1780774238000,-4000.0,0.00011784,2]
[424345967,1780774238000,-2100.0,0.000119,4]
[424345952,1780774238000,-500.0,0.00011702,2]
[424345950,1780774238000,-1255.34,0.00011573,2]
[424345963,1780774238000,-150.0,0.00011742,2]
[424345961,1780774238000,-150.0,0.00011742,2]
[424345948,1780774238000,-2000.0,0.00011542,2]
[424345944,1780774238000,-278.46,0.00011507,2]
[424345958,1780774238000,-566.17,0.00011742,2]
[424345977,1780774238000,-29999.99,0.00012087,2]
[424345955,1780774238000,-166.67,0.00011703,2]
[424345946,1780774238000,-23389.33742754,0.00011531,2]
[424345930,1780774238000,-23389.33742754,0.00011099,2]
[424345924,1780774238000,-255.0,0.00010998,2]
[424345936,1780774238000,-18059.90999238,0.00011099,2]
[424345926,1780774238000,-6733.24817333,0.00011,2]
[424345932,1780774238000,-18059.90999244,0.00011099,2]
[424345921,1780774238000,-278.46,0.00010902,2]
[424345928,1780774238000,-23389.33742762,0.00011099,2]
[424345934,1780774238000,-18059.90999238,0.00011099,2]
[424345938,1780774238000,-18059.90999238,0.00011352,2]
[424345940,1780774238000,-161.49147034,0.0001136,2]
[424345942,1780774238000,-3511.90162571,0.000114,2]
[424345957,1780774238000,-18059.90999238,0.00011726,2]
[424346029,1780774239000,-200.0,0.00012883,2]
[424346028,1780774239000,-2180.34823472,0.00012858,2]
[424346023,1780774239000,-200.0,0.00012755,2]
[424346024,1780774239000,-500.0,0.00012798,2]
[424346026,1780774239000,-218.75308,0.0001283,2]
[424346030,1780774239000,-1356.73267512,0.00012883,2]
[424346015,1780774239000,-7801.2851447,0.00012649,2]
[424346027,1780774239000,-18059.90999238,0.0001285,2]
[424346022,1780774239000,-2000.0,0.00012755,2]
[424346031,1780774239000,-200.0,0.00012883,2]
[424346025,1780774239000,-2000.0,0.00012825,2]
[424346021,1780774239000,-200.0,0.00012755,2]
[424346037,1780774239000,-152.0,0.00012992,2]
[424346033,1780774239000,-2600.0,0.000129,4]
[424346036,1780774239000,-4000.0,0.00012963,2]
[424346034,1780774239000,-166.66,0.00012926,2]
[424346035,1780774239000,-23389.33742754,0.00012928,2]
[424346040,1780774239000,-200.0,0.00013011,2]
[424346038,1780774239000,-15285.94147973,0.00013,5]
[424346042,1780774239000,-1068.51941723,0.0001305,2]
[424346039,1780774239000,-32000.0,0.00013,2]
[424346041,1780774239000,-200.0,0.00013011,2]
[424346043,1780774239000,-500.0,0.00013072,2]
[424346016,1780774239000,-4000.0,0.00012668,2]
[424346045,1780774239000,-2000.0,0.0001309,2]
[424346032,1780774239000,-407.256505,0.00012894,2]
[424346017,1780774239000,-166.67,0.00012668,2]
[424346000,1780774239000,-32691.4324247,0.00012255,2]
[424346020,1780774239000,-151.0,0.00012755,2]
[424346046,1780774239000,-2000.0,0.0001309,2]
[424345985,1780774239000,-435.0463614,0.00012155,2]
[424345983,1780774239000,-980.6162002,0.00012155,2]
[424345987,1780774239000,-4611.10775181,0.00012155,2]
[424345979,1780774239000,-18059.90999238,0.00012101,2]
[424345989,1780774239000,-500.0,0.0001225,2]
[424345981,1780774239000,-278.46,0.00012113,2]
[424345991,1780774239000,-500.4376149,0.00012255,2]
[424345993,1780774239000,-546301.7692208,0.00012255,2]
[424345995,1780774239000,-753.4864356,0.00012255,2]
[424346006,1780774239000,-154.52,0.00012431,2]
[424346005,1780774239000,-4000.0,0.00012373,2]
[424346010,1780774239000,-18059.90999238,0.00012475,2]
[424345997,1780774239000,-1286.4246244,0.00012255,2]
[424346004,1780774239000,-3147.943,0.0001233,2]
[424346009,1780774239000,-10173.8661,0.00012463,2]
[424346007,1780774239000,-2180.34823476,0.00012449,2]
[424346002,1780774239000,-214.58,0.00012329,2]
[424345998,1780774239000,-15288.9507513,0.00012255,2]
[424346008,1780774239000,-23389.33742754,0.00012463,2]
[424346011,1780774239000,-250.0,0.00012489,2]
[424346012,1780774239000,-500.0,0.00012524,2]
[424346013,1780774239000,-352.27150535,0.00012549,2]
[424346014,1780774239000,-237230.54728131,0.0001263,2]
[424346018,1780774239000,-278.46,0.00012719,2]
[424346019,1780774239000,-1113.84005779,0.0001275,2]
[424346049,1780774239000,-2000.0,0.0001309,2]
[424346097,1780774239000,-166.67,0.00013634,2]
[424346048,1780774239000,-2000.0,0.0001309,2]
[424346079,1780774239000,-1000.0,0.000135,2]
[424346089,1780774239000,-150.0,0.00013581,2]
[424346078,1780774239000,-150.0,0.00013491,2]
[424346080,1780774239000,-150.0,0.00013506,2]
[424346081,1780774239000,-150.0,0.00013525,2]
[424346084,1780774239000,-4611.10775181,0.00013528,2]
[424346083,1780774239000,-435.0463614,0.00013528,2]
[424346087,1780774239000,-150.0,0.0001355,2]
[424346088,1780774239000,-150.0,0.00013563,2]
[424346082,1780774239000,-980.61620018,0.00013528,2]
[424346085,1780774239000,-185.116593,0.00013538,2]
[424346086,1780774239000,-150.0,0.00013544,2]
[424346092,1780774239000,-150.0,0.000136,2]
[424346093,1780774239000,-150.0,0.00013613,2]
[424346094,1780774239000,-150.0,0.00013619,2]
[424346091,1780774239000,-18059.90999238,0.00013599,2]
[424346099,1780774239000,-150.0,0.00013638,2]
[424346095,1780774239000,-480.18006081,0.0001362,2]
[424346096,1780774239000,-562.02885378,0.00013627,2]
[424346098,1780774239000,-150.0,0.00013638,2]
[424346100,1780774239000,-150.0,0.00013656,2]
[424346102,1780774239000,-150.0,0.00013675,2]
[424346103,1780774239000,-150.0,0.00013675,2]
[424346047,1780774239000,-2000.0,0.0001309,2]
[424346101,1780774239000,-2180.34823472,0.00013675,2]
[424346077,1780774239000,-150.0,0.00013488,2]
[424346076,1780774239000,-150.0,0.00013488,2]
[424346090,1780774239000,-150.0,0.00013588,2]
[424346074,1780774239000,-150.0,0.00013488,2]
[424346044,1780774239000,-2000.0,0.0001309,2]
[424346053,1780774239000,-207.310761,0.00013126,2]
[424346068,1780774239000,-150.0,0.00013488,2]
[424346054,1780774239000,-200.0,0.00013141,2]